fUSD/lending_fUSD_20250109
["ID","MTS","AMOUNT","RATE_DAILY","PERIOD"]
[348338201,1736453439347,-500.0,9.857e-05,2]
[348338202,1736453439357,-500.0,9.857e-05,2]
[348338203,1736453439369,-500.0,9.857e-05,2]
[348338204,1736453439382,-1272.88,9.857e-05,2]
[348338205,1736453439392,-1258.33,9.857e-05,2]
[348338206,1736453439401,-500.0,9.857e-05,2]
[348338207,1736453439410,-500.0,9.857e-05,2]
[348338208,1736453439421,-2406.0,9.857e-05,2]
[348338209,1736453439430,-728.01,9.857e-05,2]
[348338210,1736453439440,-500.0,9.857e-05,2]
[348338211,1736453439450,-7390.39,9.857e-05,2]
[348338212,1736453439460,-705.593842,9.857e-05,2]
[348338213,1736453439470,-500.0,9.857e-05,2]
[348338214,1736453439480,-708.87,9.857e-05,2]
[348338215,1736453439491,-500.0,9.857e-05,2]
[348338216,1736453439505,-159.790057,9.857e-05,2]
[348338217,1736453439515,-157.994958,9.857e-05,2]
[348338218,1736453439525,-500.0,9.857e-05,2]
[348338219,1736453439536,-500.0,9.857e-05,2]
[348338220,1736453439546,-956.55,9.857e-05,2]
[348338221,1736453439556,-725.88,9.857e-05,2]
[348338222,1736453439566,-770.843017,9.857e-05,2]
[348338223,1736453439577,-661.61,9.857e-05,2]
[348338224,1736453439587,-1349.22,9.857e-05,2]
[348338225,1736453439597,-1071.52,9.857e-05,2]
[348338226,1736453439606,-2604.41,9.857e-05,2]
[348338227,1736453439616,-912.17,9.857e-05,2]
[348338228,1736453439631,-1193.62,9.857e-05,2]
[348338229,1736453439640,-2043.93,9.857e-05,2]
[348338230,1736453439650,-886.02,9.857e-05,2]
[348338231,1736453439659,-500.0,9.857e-05,2]
[348338232,1736453439669,-500.0,9.857e-05,2]
[348338233,1736453439678,-1186.21,9.857e-05,2]
[348338234,1736453439688,-519.04,9.857e-05,2]
[348338235,1736453439697,-500.0,9.857e-05,2]
[348338236,1736453439707,-706.05202765,9.857e-05,2]
[348338237,1736453439716,-500.0,9.857e-05,2]
[348338238,1736453439726,-4510.36,9.857e-05,2]
[348338239,1736453439735,-500.0,9.857e-05,2]
[348338240,1736453439745,-1229.79,9.857e-05,2]
[348338241,1736453439755,-500.0,9.857e-05,2]
[348338242,1736453439764,-758.21,9.857e-05,2]
[348338243,1736453439774,-707.32,9.857e-05,2]
[348338244,1736453439783,-500.0,9.857e-05,2]
[348338245,1736453439793,-1467.87,9.857e-05,2]
[348338246,1736453439803,-500.0,9.857e-05,2]
[348338247,1736453439812,-1641.68,9.857e-05,2]
[348338248,1736453439822,-564.24,9.857e-05,2]
[348338249,1736453439832,-500.0,9.857e-05,2]
[348338250,1736453439842,-1667.71,9.857e-05,2]
[348338251,1736453439851,-1204.26,9.857e-05,2]
[348338253,1736453439861,-500.0,9.857e-05,2]
[348338254,1736453439874,-750.0,9.857e-05,2]
[348338255,1736453439884,-500.0,9.857e-05,2]
[348338256,1736453439894,-571.21,9.857e-05,2]
[348338257,1736453439905,-500.0,9.857e-05,2]
[348338258,1736453439916,-1000.0,9.857e-05,2]
[348338259,1736453439926,-613.62,9.857e-05,2]
[348338260,1736453439936,-889.07,9.857e-05,2]
[348338261,1736453439947,-500.0,9.857e-05,2]
[348338262,1736453439960,-549.22,9.857e-05,2]
[348338263,1736453439971,-500.0,9.857e-05,2]
[348338264,1736453439981,-2041.37,9.857e-05,2]
[348338265,1736453439992,-500.0,9.857e-05,2]
[348338266,1736453440005,-500.0,9.858e-05,2]
[348338267,1736453440016,-500.0,9.858e-05,2]
[348338269,1736453440026,-500.0,9.858e-05,2]
[348338270,1736453440035,-500.0,9.858e-05,2]
[348338271,1736453440046,-500.0,9.858e-05,2]
[348338272,1736453440056,-500.0,9.858e-05,2]
[348338273,1736453440066,-500.0,9.858e-05,2]
[348338274,1736453440075,-500.0,9.858e-05,2]
[348338275,1736453440085,-500.0,9.858e-05,2]
[348338276,1736453440096,-500.0,9.858e-05,2]
[348338278,1736453440105,-500.0,9.858e-05,2]
[348338280,1736453440115,-500.0,9.858e-05,2]
[348338281,1736453440129,-500.0,9.858e-05,2]
[348338282,1736453440137,-500.0,9.858e-05,2]
[348338283,1736453440147,-500.0,9.858e-05,2]
[348338284,1736453440157,-500.0,9.858e-05,2]
[348338285,1736453440166,-500.0,9.858e-05,2]
[348338286,1736453440175,-500.0,9.858e-05,2]
[348338287,1736453440185,-500.0,9.858e-05,2]
[348338288,1736453440194,-500.0,9.858e-05,2]
[348338289,1736453440204,-500.0,9.858e-05,2]
[348338290,1736453440214,-500.0,9.858e-05,2]
[348338291,1736453440224,-500.0,9.858e-05,2]
[348338292,1736453440234,-500.0,9.858e-05,2]
[348338293,1736453440244,-501.32225581,9.858e-05,2]
[348338294,1736453440253,-500.0,9.858e-05,2]
[348338295,1736453440263,-500.0,9.858e-05,2]
[348338296,1736453440272,-500.0,9.858e-05,2]
[348338297,1736453440283,-500.0,9.858e-05,2]
[348338298,1736453440292,-500.0,9.858e-05,2]
[348338299,1736453440302,-500.0,9.858e-05,2]
[348338300,1736453440312,-500.0,9.858e-05,2]
[348338301,1736453440321,-500.0,9.858e-05,2]
[348338302,1736453440331,-500.0,9.858e-05,2]
[348338303,1736453440340,-500.0,9.858e-05,2]
[348338304,1736453440349,-500.0,9.858e-05,2]
[348338305,1736453440359,-500.0,9.858e-05,2]
[348338306,1736453440368,-500.0,9.858e-05,2]
[348338307,1736453440381,-500.0,9.858e-05,2]
[348338308,1736453440391,-500.0,9.858e-05,2]
[348338309,1736453440400,-500.0,9.858e-05,2]
[348338310,1736453440410,-500.0,9.858e-05,2]
[348338311,1736453440420,-500.0,9.858e-05,2]
[348338312,1736453440430,-500.0,9.858e-05,2]
[348338313,1736453440439,-766.96,9.858e-05,2]
[348338314,1736453440448,-500.0,9.858e-05,2]
[348338315,1736453440457,-500.0,9.858e-05,2]
[348338316,1736453440469,-500.0,9.858e-05,2]
[348338317,1736453440479,-500.0,9.858e-05,2]
[348338318,1736453440489,-500.98064584,9.858e-05,2]
[348338319,1736453440499,-500.0,9.858e-05,2]
[348338320,1736453440508,-500.0,9.858e-05,2]
[348338321,1736453440517,-400.0,9.858e-05,2]
[348338322,1736453440526,-500.0,9.858e-05,2]
[348338323,1736453440535,-500.0,9.858e-05,2]
[348338324,1736453440546,-500.0,9.858e-05,2]
[348338325,1736453440557,-500.0,9.858e-05,2]
[348338326,1736453440567,-500.0,9.858e-05,2]
[348338327,1736453440578,-500.64057856,9.858e-05,2]
[348338328,1736453440589,-500.0,9.858e-05,2]
[348338329,1736453440599,-500.0,9.858e-05,2]
[348338330,1736453440610,-500.0,9.858e-05,2]
[348338331,1736453440622,-500.0,9.858e-05,2]
[348338332,1736453440632,-500.0,9.858e-05,2]
[348338333,1736453440643,-746.69,9.858e-05,2]
[348338334,1736453440654,-501.28082257,9.858e-05,2]
[348338335,1736453440664,-150.2899593,9.858e-05,2]
[348338336,1736453440674,-500.60756101,9.858e-05,2]
[348338337,1736453440684,-500.0,9.858e-05,2]
[348338338,1736453440695,-500.0,9.858e-05,2]
[348338339,1736453440705,-500.0,9.858e-05,2]
[348338341,1736453440715,-500.0,9.858e-05,2]
[348338343,1736453440725,-500.0,9.858e-05,2]
[348338344,1736453440736,-500.0,9.858e-05,2]
[348338345,1736453440746,-500.0,9.858e-05,2]
[348338346,1736453440757,-500.0,9.858e-05,2]
[348338348,1736453440768,-500.0,9.858e-05,2]
[348338350,1736453440779,-501.44011796,9.858e-05,2]
[348338352,1736453440789,-207.81259824,9.858e-05,2]
[348338354,1736453440799,-500.0,9.858e-05,2]
[348338356,1736453440808,-500.0,9.858e-05,2]
[348338358,1736453440818,-500.0,9.858e-05,2]
[348338360,1736453440828,-500.0,9.858e-05,2]
[348338362,1736453440837,-876.56,9.858e-05,2]
[348338364,1736453440847,-500.0,9.858e-05,2]
[348338366,1736453440856,-500.0,9.858e-05,2]
[348338368,1736453440865,-500.0,9.858e-05,2]
[348338370,1736453440877,-500.0,9.858e-05,2]
[348338372,1736453440887,-500.0,9.858e-05,2]
[348338374,1736453440896,-500.0,9.858e-05,2]
[348338376,1736453440906,-500.0,9.858e-05,2]
[348338378,1736453440915,-500.0,9.858e-05,2]
[348338380,1736453440925,-500.0,9.858e-05,2]
[348338382,1736453440934,-208.54086522,9.858e-05,2]
[348338384,1736453440944,-626.16,9.858e-05,2]
[348338386,1736453440954,-500.0,9.858e-05,2]
[348338388,1736453440963,-500.0,9.858e-05,2]
[348338390,1736453440972,-500.0,9.858e-05,2]
[348338392,1736453440981,-500.0,9.858e-05,2]
[348338394,1736453440990,-500.58353621,9.858e-05,2]
[348338396,1736453441001,-500.0,9.858e-05,2]
[348338398,1736453441012,-500.0,9.858e-05,2]
[348338400,1736453441022,-500.0,9.858e-05,2]
[348338402,1736453441031,-500.0,9.858e-05,2]
[348338404,1736453441042,-500.0,9.858e-05,2]
[348338406,1736453441051,-500.0,9.858e-05,2]
[348338408,1736453441060,-500.0,9.858e-05,2]
[348338410,1736453441070,-500.0,9.858e-05,2]
[348338412,1736453441080,-502.59534447,9.858e-05,2]
[348338414,1736453441090,-500.0,9.858e-05,2]
[348338416,1736453441099,-682.17,9.858e-05,2]
[348338418,1736453441108,-500.0,9.858e-05,2]
[348338420,1736453441118,-500.0,9.858e-05,2]
[348338422,1736453441129,-500.0,9.858e-05,2]
[348338424,1736453441138,-500.0,9.858e-05,2]
[348338426,1736453441147,-500.0,9.858e-05,2]
[348338428,1736453441156,-500.0,9.858e-05,2]
[348338430,1736453441167,-455.8480764,9.858e-05,2]
[348338432,1736453441177,-500.0,9.858e-05,2]
[348338434,1736453441186,-500.0,9.858e-05,2]
[348338436,1736453441195,-500.0,9.858e-05,2]
[348338438,1736453441205,-500.0,9.858e-05,2]
[348338440,1736453441214,-500.0,9.858e-05,2]
[348338442,1736453441223,-500.0,9.858e-05,2]
[348338444,1736453441233,-500.0,9.858e-05,2]
[348338447,1736453441243,-525.68302581,9.858e-05,2]
[348338448,1736453441252,-500.0,9.858e-05,2]
[348338450,1736453441261,-500.0,9.858e-05,2]
[348338452,1736453441271,-500.0,9.858e-05,2]
[348338454,1736453441280,-500.0,9.858e-05,2]
[348338456,1736453441289,-500.0,9.858e-05,2]
[348338458,1736453441298,-500.0,9.858e-05,2]
[348338460,1736453441308,-352.34791048,9.858e-05,2]
[348338462,1736453441317,-501.17817601,9.858e-05,2]
[348338464,1736453441327,-500.0,9.858e-05,2]
[348338466,1736453441337,-500.0,9.858e-05,2]
[348338468,1736453441346,-500.0,9.858e-05,2]
[348338470,1736453441355,-500.0,9.858e-05,2]
[348338472,1736453441364,-500.0,9.858e-05,2]
[348338475,1736453441378,-500.0,9.858e-05,2]
[348338477,1736453441387,-504.80682926,9.858e-05,2]
[348338479,1736453441397,-500.0,9.858e-05,2]
[348338480,1736453441406,-500.0,9.858e-05,2]
[348338481,1736453441415,-500.0,9.858e-05,2]
[348338482,1736453441425,-500.0,9.858e-05,2]
[348338483,1736453441435,-821.83,9.858e-05,2]
[348338484,1736453441445,-501.45305014,9.858e-05,2]
[348338485,1736453441454,-501.27887555,9.858e-05,2]
[348338487,1736453441464,-500.0,9.858e-05,2]
[348338489,1736453441474,-500.0,9.858e-05,2]
[348338491,1736453441484,-500.0,9.858e-05,2]
[348338493,1736453441493,-501.13836844,9.858e-05,2]
[348338495,1736453441503,-500.0,9.858e-05,2]
[348338497,1736453441513,-500.0,9.858e-05,2]
[348338499,1736453441523,-500.0,9.858e-05,2]
[348338501,1736453441533,-500.0,9.858e-05,2]
[348338503,1736453441543,-500.0,9.858e-05,2]
[348338505,1736453441552,-500.0,9.858e-05,2]
[348338507,1736453441562,-500.0,9.858e-05,2]
[348338509,1736453441572,-500.0,9.858e-05,2]
[348338511,1736453441582,-500.0,9.858e-05,2]
[348338513,1736453441592,-500.0,9.858e-05,2]
[348338515,1736453441602,-500.0,9.858e-05,2]
[348338517,1736453441611,-500.0,9.858e-05,2]
[348338518,1736453441623,-500.0,9.858e-05,2]
[348338519,1736453441633,-500.0,9.858e-05,2]
[348338520,1736453441643,-500.0,9.858e-05,2]
[348338521,1736453441653,-500.0,9.858e-05,2]
[348338522,1736453441662,-500.0,9.858e-05,2]
[348338523,1736453441671,-500.0,9.858e-05,2]
[348338524,1736453441680,-500.0,9.858e-05,2]
[348338525,1736453441690,-500.0,9.858e-05,2]
[348338527,1736453441699,-500.0,9.858e-05,2]
[348338529,1736453441708,-772.82,9.858e-05,2]
[348338531,1736453441717,-500.0,9.858e-05,2]
[348338533,1736453441726,-500.0,9.858e-05,2]
[348338535,1736453441735,-500.0,9.858e-05,2]
[348338537,1736453441744,-500.0,9.858e-05,2]
[348338538,1736453441753,-500.0,9.858e-05,2]
[348338539,1736453441763,-500.0,9.858e-05,2]
[348338540,1736453441773,-500.0,9.858e-05,2]
[348338541,1736453441783,-500.0,9.858e-05,2]
[348338542,1736453441794,-500.0,9.858e-05,2]
[348338543,1736453441805,-754.85,9.858e-05,2]
[348338544,1736453441816,-500.0,9.858e-05,2]
[348338545,1736453441827,-500.0,9.858e-05,2]
[348338546,1736453441836,-520.44,9.858e-05,2]
[348338547,1736453441847,-500.0,9.858e-05,2]
[348338548,1736453441857,-510.07013657,9.858e-05,2]
[348338549,1736453441867,-500.0,9.858e-05,2]
[348338550,1736453441878,-500.0,9.858e-05,2]
[348338551,1736453441887,-500.0,9.858e-05,2]
[348338552,1736453441896,-500.0,9.858e-05,2]
[348338553,1736453441906,-503.4,9.858e-05,2]
[348338554,1736453441915,-500.0,9.858e-05,2]
[348338555,1736453441925,-500.0,9.858e-05,2]
[348338556,1736453441934,-500.0,9.858e-05,2]
[348338557,1736453441944,-500.0,9.858e-05,2]
[348338558,1736453441953,-500.0,9.858e-05,2]
[348338559,1736453441963,-500.0,9.858e-05,2]
[348338560,1736453441972,-500.0,9.858e-05,2]
[348338561,1736453441982,-500.0,9.858e-05,2]
[348338562,1736453441991,-1131.05,9.858e-05,2]
[348338563,1736453442003,-500.0,9.858e-05,2]
[348338564,1736453442013,-500.0,9.858e-05,2]
[348338565,1736453442023,-500.0,9.858e-05,2]
[348338566,1736453442032,-301.29,9.858e-05,2]
[348338567,1736453442042,-500.0,9.858e-05,2]
[348338568,1736453442052,-500.0,9.858e-05,2]
[348338569,1736453442061,-500.0,9.858e-05,2]
[348338570,1736453442070,-952.27,9.858e-05,2]
[348338571,1736453442082,-500.0,9.858e-05,2]
[348338572,1736453442092,-500.0,9.858e-05,2]
[348338573,1736453442101,-500.0,9.858e-05,2]
[348338574,1736453442111,-225.05,9.858e-05,2]
[348338575,1736453442120,-613.25,9.858e-05,2]
[348338576,1736453442132,-501.85269262,9.858e-05,2]
[348338577,1736453442142,-500.0,9.858e-05,2]
[348338578,1736453442151,-500.0,9.858e-05,2]
[348338579,1736453442160,-500.0,9.858e-05,2]
[348338580,1736453442170,-500.0,9.858e-05,2]
[348338581,1736453442179,-617.2,9.858e-05,2]
[348338582,1736453442188,-913.01,9.858e-05,2]
[348338583,1736453442198,-500.0,9.858e-05,2]
[348338584,1736453442207,-500.0,9.858e-05,2]
[348338585,1736453442216,-500.0,9.858e-05,2]
[348338586,1736453442225,-500.0,9.858e-05,2]
[348338587,1736453442235,-500.0,9.858e-05,2]
[348338588,1736453442246,-500.0,9.858e-05,2]
[348338589,1736453442256,-500.0,9.858e-05,2]
[348338590,1736453442268,-500.0,9.858e-05,2]
[348338591,1736453442279,-500.0,9.858e-05,2]
[348338592,1736453442289,-980.92,9.858e-05,2]
[348338593,1736453442299,-500.0,9.858e-05,2]
[348338594,1736453442309,-197.13199298,9.858e-05,2]
[348338595,1736453442320,-506.8653332,9.858e-05,2]
[348338596,1736453442330,-539.48,9.858e-05,2]
[348338597,1736453442340,-500.0,9.858e-05,2]
[348338598,1736453442351,-500.0,9.858e-05,2]
[348338599,1736453442361,-500.0,9.858e-05,2]
[348338600,1736453442374,-500.0,9.858e-05,2]
[348338601,1736453442383,-766.41,9.858e-05,2]
[348338602,1736453442605,-500.0,9.858e-05,2]
[348338603,1736453442615,-500.0,9.858e-05,2]
[348338604,1736453442628,-500.0,9.858e-05,2]
[348338605,1736453442638,-500.0,9.858e-05,2]
[348338606,1736453442648,-500.0,9.858e-05,2]
[348338607,1736453442657,-408.46642065,9.858e-05,2]
[348338608,1736453442667,-500.0,9.858e-05,2]
[348338609,1736453442676,-500.0,9.858e-05,2]
[348338610,1736453442686,-500.0,9.858e-05,2]
[348338611,1736453442695,-929.17,9.858e-05,2]
[348338612,1736453442705,-813.3,9.858e-05,2]
[348338613,1736453442714,-500.0,9.858e-05,2]
[348338614,1736453442724,-500.0,9.858e-05,2]
[348338615,1736453442733,-247.09929217,9.858e-05,2]
[348338616,1736453442743,-500.0,9.858e-05,2]
[348338617,1736453442753,-704.77,9.858e-05,2]
[348338618,1736453442762,-500.0,9.858e-05,2]
[348338619,1736453442771,-881.52,9.858e-05,2]
[348338620,1736453442781,-500.0,9.858e-05,2]
[348338621,1736453442790,-500.0,9.858e-05,2]
[348338622,1736453442800,-500.0,9.858e-05,2]
[348338623,1736453442809,-500.0,9.858e-05,2]
[348338624,1736453442819,-500.0,9.858e-05,2]
[348338625,1736453442829,-500.0,9.858e-05,2]
[348338626,1736453442839,-500.0,9.858e-05,2]
[348338627,1736453442849,-917.37,9.858e-05,2]
[348338629,1736453442858,-500.0,9.858e-05,2]
[348338631,1736453442867,-897.7,9.858e-05,2]
[348338632,1736453442880,-500.0,9.858e-05,2]
[348338633,1736453442889,-500.0,9.858e-05,2]
[348338634,1736453442898,-500.0,9.858e-05,2]
[348338635,1736453442908,-500.0,9.858e-05,2]
[348338637,1736453442917,-973.55,9.858e-05,2]
[348338639,1736453442926,-500.0,9.858e-05,2]
[348338640,1736453442935,-698.28,9.858e-05,2]
[348338641,1736453442945,-500.0,9.858e-05,2]
[348338642,1736453442954,-589.47,9.858e-05,2]
[348338643,1736453442963,-612.35216311,9.858e-05,2]
[348338646,1736453442972,-500.0,9.858e-05,2]
[348338648,1736453442982,-500.0,9.858e-05,2]
[348338649,1736453442991,-500.0,9.858e-05,2]
[348338650,1736453443005,-1010.09,9.858e-05,2]
[348338651,1736453443015,-500.0,9.858e-05,2]
[348338653,1736453443024,-510.53289808,9.858e-05,2]
[348338654,1736453443034,-500.0,9.858e-05,2]
[348338655,1736453443044,-841.45,9.858e-05,2]
[348338656,1736453443053,-500.0,9.858e-05,2]
[348338657,1736453443063,-500.0,9.858e-05,2]
[348338658,1736453443074,-755.3,9.858e-05,2]
[348338659,1736453443084,-500.0,9.858e-05,2]
[348338660,1736453443093,-540.84,9.858e-05,2]
[348338661,1736453443103,-500.0,9.858e-05,2]
[348338664,1736453443114,-500.0,9.858e-05,2]
[348338667,1736453443126,-500.0,9.858e-05,2]
[348338670,1736453443135,-500.0,9.858e-05,2]
[348338672,1736453443144,-500.0,9.858e-05,2]
[348338673,1736453443154,-500.0,9.858e-05,2]
[348338674,1736453443163,-500.0,9.858e-05,2]
[348338675,1736453443173,-500.0,9.858e-05,2]
[348338676,1736453443182,-1315.08,9.858e-05,2]
[348338677,1736453443191,-500.0,9.858e-05,2]
[348338678,1736453443200,-4283.48,9.858e-05,2]
[348338679,1736453443209,-500.0,9.858e-05,2]
[348338680,1736453443219,-500.0,9.858e-05,2]
[348338681,1736453443229,-500.0,9.858e-05,2]
[348338682,1736453443238,-500.0,9.858e-05,2]
[348338683,1736453443248,-500.0,9.858e-05,2]
[348338684,1736453443257,-500.0,9.858e-05,2]
[348338685,1736453443266,-500.0,9.858e-05,2]
[348338686,1736453443275,-751.09,9.858e-05,2]
[348338687,1736453443285,-500.0,9.858e-05,2]
[348338688,1736453443295,-500.0,9.858e-05,2]
[348338689,1736453443304,-578.15,9.858e-05,2]
[348338690,1736453443314,-500.0,9.858e-05,2]
[348338691,1736453443324,-2865.09,9.858e-05,2]
[348338692,1736453443333,-549.27,9.858e-05,2]
[348338693,1736453443343,-500.0,9.858e-05,2]
[348338694,1736453443353,-500.0,9.858e-05,2]
[348338695,1736453443362,-500.0,9.858e-05,2]
[348338696,1736453443371,-500.0,9.858e-05,2]
[348338697,1736453443381,-500.0,9.858e-05,2]
[348338698,1736453443391,-500.0,9.858e-05,2]
[348338699,1736453443400,-881.37,9.858e-05,2]
[348338700,1736453443410,-1437.63,9.858e-05,2]
[348338701,1736453443419,-500.0,9.858e-05,2]
[348338702,1736453443429,-336.74250086,9.858e-05,2]
[348338703,1736453443438,-500.0,9.858e-05,2]
[348338704,1736453443448,-600.27,9.858e-05,2]
[348338705,1736453443457,-500.0,9.858e-05,2]
[348338706,1736453443467,-2896.79,9.858e-05,2]
[348338707,1736453443478,-500.0,9.858e-05,2]
[348338708,1736453443487,-500.0,9.858e-05,2]
[348338709,1736453443497,-500.0,9.858e-05,2]
[348338711,1736453443507,-500.0,9.858e-05,2]
[348338713,1736453443517,-500.0,9.858e-05,2]
[348338714,1736453443527,-500.0,9.858e-05,2]
[348338716,1736453443536,-823.24,9.858e-05,2]
[348338718,1736453443546,-500.0,9.858e-05,2]
[348338720,1736453443555,-1458.91,9.858e-05,2]
[348338722,1736453443565,-500.0,9.858e-05,2]
[348338724,1736453443574,-500.0,9.858e-05,2]
[348338726,1736453443583,-909.15,9.858e-05,2]
[348338728,1736453443593,-500.0,9.858e-05,2]
[348338730,1736453443602,-500.0,9.858e-05,2]
[348338732,1736453443612,-585.54,9.858e-05,2]
[348338735,1736453443623,-522.68,9.858e-05,2]
[348338738,1736453443634,-857.97,9.858e-05,2]
[348338740,1736453443643,-500.0,9.858e-05,2]
[348338742,1736453443653,-500.0,9.858e-05,2]
[348338744,1736453443662,-296.09675034,9.858e-05,2]
[348338746,1736453443671,-500.0,9.858e-05,2]
[348338748,1736453443680,-500.0,9.858e-05,2]
[348338749,1736453443690,-500.0,9.858e-05,2]
[348338751,1736453443701,-599.8,9.858e-05,2]
[348338754,1736453443710,-500.0,9.858e-05,2]
[348338756,1736453443720,-500.0,9.858e-05,2]
[348338758,1736453443729,-752.36,9.858e-05,2]
[348338760,1736453443738,-500.0,9.858e-05,2]
[348338762,1736453443748,-500.0,9.858e-05,2]
[348338764,1736453443757,-500.0,9.858e-05,2]
[348338766,1736453443767,-1542.98,9.858e-05,2]
[348338768,1736453443776,-500.0,9.858e-05,2]
[348338770,1736453443785,-1617.54,9.858e-05,2]
[348338772,1736453443795,-500.0,9.858e-05,2]
[348338774,1736453443804,-943.27,9.858e-05,2]
[348338775,1736453443814,-500.0,9.858e-05,2]
[348338778,1736453443824,-500.0,9.858e-05,2]
[348338780,1736453443833,-500.0,9.858e-05,2]
[348338782,1736453443843,-500.0,9.858e-05,2]
[348338784,1736453443852,-500.0,9.858e-05,2]
[348338786,1736453443861,-500.0,9.858e-05,2]
[348338787,1736453443870,-500.0,9.858e-05,2]
[348338790,1736453443881,-500.0,9.858e-05,2]
[348338792,1736453443890,-500.0,9.858e-05,2]
[348338794,1736453443899,-798.33,9.858e-05,2]
[348338796,1736453443908,-521.83,9.858e-05,2]
[348338798,1736453443917,-500.0,9.858e-05,2]
[348338800,1736453443926,-500.0,9.858e-05,2]
[348338802,1736453443935,-500.0,9.858e-05,2]
[348338804,1736453443945,-1947.1,9.858e-05,2]
[348338806,1736453443955,-500.0,9.858e-05,2]
[348338807,1736453443964,-500.0,9.858e-05,2]
[348338809,1736453443973,-1155.14,9.858e-05,2]
[348338811,1736453443983,-500.0,9.858e-05,2]
[348338813,1736453443992,-3401.73,9.858e-05,2]
[348338815,1736453444003,-500.0,9.858e-05,2]
[348338817,1736453444014,-1218.54,9.858e-05,2]
[348338819,1736453444023,-500.0,9.858e-05,2]
[348338821,1736453444032,-500.0,9.858e-05,2]
[348338823,1736453444042,-774.39,9.858e-05,2]
[348338825,1736453444052,-500.0,9.858e-05,2]
[348338827,1736453444061,-500.0,9.858e-05,2]
[348338829,1736453444071,-501.88690847,9.858e-05,2]
[348338831,1736453444079,-500.0,9.858e-05,2]
[348338833,1736453444088,-731.86,9.858e-05,2]
[348338835,1736453444098,-500.0,9.859e-05,2]
[348338837,1736453444108,-500.0,9.859e-05,2]
[348338839,1736453444117,-617.44,9.859e-05,2]
[348338841,1736453444126,-500.0,9.859e-05,2]
[348338843,1736453444135,-910.71,9.859e-05,2]
[348338845,1736453444145,-500.0,9.859e-05,2]
[348338847,1736453444154,-500.0,9.859e-05,2]
[348338849,1736453444163,-500.0,9.859e-05,2]
[348338851,1736453444172,-718.64,9.859e-05,2]
[348338854,1736453444183,-626.73,9.859e-05,2]
[348338856,1736453444192,-643.92,9.859e-05,2]
[348338858,1736453444201,-806.78,9.859e-05,2]
[348338860,1736453444212,-510.25,9.859e-05,2]
[348338862,1736453444221,-500.0,9.859e-05,2]
[348338864,1736453444231,-500.0,9.859e-05,2]
[348338866,1736453444240,-500.0,9.859e-05,2]
[348338868,1736453444249,-960.2,9.859e-05,2]
[348338870,1736453444258,-516.58,9.859e-05,2]
[348338871,1736453444267,-812.84,9.859e-05,2]
[348338873,1736453444276,-500.0,9.859e-05,2]
[348338875,1736453444286,-787.24,9.859e-05,2]
[348338878,1736453444295,-500.0,9.859e-05,2]
[348338880,1736453444304,-500.0,9.859e-05,2]
[348338882,1736453444313,-500.0,9.859e-05,2]
[348338884,1736453444322,-599.37054097,9.859e-05,2]
[348338886,1736453444331,-587.63,9.859e-05,2]
[348338887,1736453444341,-500.0,9.859e-05,2]
[348338889,1736453444350,-500.0,9.859e-05,2]
[348338891,1736453444359,-500.0,9.859e-05,2]
[348338893,1736453444369,-500.0,9.859e-05,2]
[348338895,1736453444379,-1800.75,9.859e-05,2]
[348338897,1736453444388,-1437.34,9.86e-05,2]
[348338899,1736453444398,-150.0,9.86e-05,2]
[348338901,1736453444407,-150.0,9.865e-05,2]
[348338904,1736453444417,-1000.0,9.9e-05,2]
[348338906,1736453444426,-2886.50390512,9.9e-05,2]
[348338908,1736453444435,-150.0,9.915e-05,2]
[348338910,1736453444445,-150.0,9.951e-05,2]
[348338911,1736453444455,-206.33317845,9.971e-05,2]